Cogmind - Beta 13 @@@ ROGUE MODE // 2024.04.03 @ 13:21:00 Player: Nathan Result: Destroyed by S-27 Virus with Autogun Performance ------------- Evolutions (4) 2000 Regions Visited (7) 1400 Robots Destroyed (20) 100 Value Destroyed (517) 517 Prototype IDs (2) 40 Alien Tech Used (0) 0 Bonus (0) 0 TOTAL SCORE: 4057 Bonus ------- None Cogmind --------- Core Integrity 0/850 Matter 272/300 Energy 65/100 System Corruption 6% Temperature Cool (0) Movement Core (100) Ox1 Location -6/Factory Parts ------- > --- POWER (2) -------- (None) > --- PROPULSION (5) --- (None) > --- UTILITY (6) ------ (None) > --- WEAPON (2) ------- Plasma Rifle > --- INVENTORY (5) ---- (None) Peak State ------------ > --- POWER ------------ Light Deuterium Engine Improved Deuterium Engine > --- PROPULSION ------- Carbon-fiber Leg Carbon-fiber Leg Carbon-fiber Leg > --- UTILITY ---------- Large Storage Unit Microactuators ECM Suite Reaction Control System Hacking Suite Authchip [Armor] > --- WEAPON ----------- Greatsword > --- INVENTORY -------- Thermic Laser [Rating: 40] Favorites ----------- Power Improved Deuterium Engine Engine Improved Deuterium Engine Power Core Light Nuclear Core Propulsion Carbon-fiber Leg Leg Carbon-fiber Leg Wheel Compact Wheel Hover Unit Hover Unit Flight Unit Flight Unit Utility Small Storage Unit Device ECM Suite Storage Small Storage Unit Hackware Authchip [Armor] Protection Propulsion Shielding Weapon EM Pulse Gun Energy Gun EM Pulse Gun Energy Cannon Improved EM Pulse Cannon Ballistic Gun High-powered Shotgun Ballistic Cannon Flak Cannon Launcher Improved Grenade Launcher Special Weapon Plasma Cutter Slashing Weapon Greatsword Special Melee Weapon Improved Datajack Build | -11 -10 -9 -8 -7 -7 -7 -6 ------- Run | Yrd Mat Mat Mat Fac Low Low Fac Slots Evolved 8 | . . 2 2 2 . . 2 Power 1 | . . . . 1 . . . Propulsion 3 | . . 1 1 . . . 1 Utility 4 | . . 1 1 1 . . 1 Weapon . | . . . . . . . . Parts Attached 60 | 6 3 8 9 1 5 16 12 Power 7 | 1 1 . 2 1 . 1 1 Engine 6 | 1 1 . 1 1 . 1 1 Core 1 | . . . 1 . . . . Reactor . | . . . . . . . . Propulsion 18 | 2 . 5 1 . 2 5 3 Treads . | . . . . . . . . Leg 9 | 2 . . . . . 4 3 Wheel 1 | . . . 1 . . . . Hover 2 | . . 1 . . 1 . . Flight 6 | . . 4 . . 1 1 . Utility 17 | 1 2 2 2 . 1 4 5 Device 6 | . 1 . 1 . . 1 3 Storage 3 | 1 . . 1 . . . 1 Processor . | . . . . . . . . Hackware 3 | . . 1 . . . 1 1 Protection 5 | . 1 1 . . 1 2 . Artifact . | . . . . . . . . Weapon 18 | 2 . 1 4 . 2 6 3 Energy Gun 7 | 2 . . 1 . 1 1 2 Energy Cannon 1 | . . . . . . 1 . Ballistic Gun 2 | . . . 1 . . 1 . Ballistic Cannon 1 | . . . . . . 1 . Launcher 1 | . . . . . . 1 . Special Weapon 4 | . . 1 2 . 1 . . Impact Weapon . | . . . . . . . . Slashing Weapon 1 | . . . . . . . 1 Piercing Weapon . | . . . . . . . . Special Melee Weapon 1 | . . . . . . 1 . Unidentified Prototypes . | . . . . . . . . Corrupted Parts 2 | . . . . . . 2 . System Corruption 18 | . . . . . . 18 . Parts Lost 38 | . . . 10 . 6 7 15 Power 5 | . . . 2 . 1 . 2 Propulsion 14 | . . . 4 . 2 2 6 Utility 12 | . . . 2 . 2 3 5 Weapon 7 | . . . 2 . 1 2 2 Highest Loss Streak 10 | . . . 10 . 5 2 7 To Critical Strikes . | . . . . . . . . Average Slot Usage (%) 54 | . 96 82 65 13 15 35 50 Engine 6 | . 14 11 6 5 3 3 5 Leg 13 | . 28 . . . . 13 16 Flight 4 | . . 32 21 . . 1 . Device 6 | . 7 11 10 7 3 . 9 Storage 4 | . 14 11 9 . . . 2 Hackware 4 | . . 4 8 . . 3 9 Protection 1 | . 3 . . . 1 4 . Energy Gun 6 | . 28 8 . . 2 . . Ballistic Gun 1 | . . . 5 . . 1 1 Naked Turns 140 | . . . . . 1 98 41 Heaviest Build 45 | 11 13 13 18 10 11 19 45 Greatest Support 60 | 20 20 12 25 12 16 60 60 Greatest Overweight (x) 3 | 2 . 1 1 . 3 2 1 Average Overweight (x) . | . . . . . . . . Largest Inventory Capacity 15 | 8 8 8 10 5 5 5 15 Average Capacity 7 | 7 8 8 8 5 5 5 8 Most Carried 8 | 4 8 8 8 5 5 5 5 Average Carried 3 | 2 7 6 7 5 3 2 1 Final Capacity 8 | 8 8 8 5 5 5 5 5 Final Carried 8 | 4 8 7 5 5 2 2 . Class Distribution -------------------- 63% | Mutant 21% | Scavenger-Mutant 8% | Scavenger-Gladiator 5% | Derelict-Mutant Dominant Class ---------------- Mutant | -10/Materials Mutant | -9/Materials Mutant | -8/Materials Mutant | -7/Factory Mutant | -7/Lower Caves Scavenger-Mutant | -7/Lower Caves Scavenger-Mutant | -6/Factory Resources | -11 -10 -9 -8 -7 -7 -7 -6 ----------- Run | Yrd Mat Mat Mat Fac Low Low Fac Matter Collected 689 | 129 40 20 61 . 75 270 94 Remotely . | . . . . . . . . Salvage Created 999 | . 135 20 185 . 34 45 580 Parts 52 | . 12 2 11 . 2 4 21 Haulers Intercepted 1 | . . . 1 . . . . Recyclers Shooed 1 | . 1 . . . . . . Parts Field Recycled . | . . . . . . . . Retrieved Matter . | . . . . . . . . Parts Self-Destructed 9 | . . . . . 8 1 . Prevented 4 | . . . . . . 4 . Kills | -11 -10 -9 -8 -7 -7 -7 -6 ------- Run | Yrd Mat Mat Mat Fac Low Low Fac Combat Hostiles Destroyed 12 | . 5 . 1 . 2 1 3 Melee 3 | . . . . . . . 3 Guns 8 | . 5 . 1 . 2 . . AOE 1 | . . . . . . 1 . Classes Destroyed 7 | . 2 1 2 . . . 2 Hauler 1 | . . . 1 . . . . Recycler 4 | . . . 1 . . . 3 Operator 2 | . . 1 1 . . . . Watcher 1 | . . . . . . . 1 Swarmer 5 | . 3 . . . 2 . . Grunt 5 | . 2 . 1 . . . 2 Programmer 1 | . . . . . . . 1 Thug 1 | . . . . . . 1 . Best Kill Streak 4 | . 2 1 1 . 1 1 4 Combat Bots Only 3 | . 2 . 1 . 1 1 3 Max Kills in Single Turn 2 | . 2 1 1 . 1 1 1 Gunslinging . | . . . . . . . . Exploded 1 | . . . . . . 1 . Melee 1 | . . . . . . . 1 Uniques/NPCs Destroyed . | . . . . . . . . Combat | -11 -10 -9 -8 -7 -7 -7 -6 -------- Run | Yrd Mat Mat Mat Fac Low Low Fac Hostile Shots Fired 467 | . 23 1 78 . 113 45 207 Missed 169 | . 9 . 25 . 47 13 75 Damage Taken 4574 | . 134 12 902 . 888 664 1974 Core 1897 | . 26 . 410 . 428 175 858 Absorbed by Shields . | . . . . . . . . Redirected to Shielding 36 | . 4 . . . . 32 . Ignored by Resistances 6 | . . . . . . 6 . Core Remaining (%) 65 | 100 89 100 25 . . 13 . Volleys Fired 70 | . 15 11 21 . 14 4 5 Largest 2 | . 2 1 2 . 1 2 2 Hottest 105 | . 80 40 60 . 63 105 85 Shots Fired 89 | . 30 11 23 . 14 5 6 Gun 73 | . 30 2 20 . 13 3 5 Cannon 2 | . . . . . . 1 1 Launcher 1 | . . . . . . 1 . Special 13 | . . 9 3 . 1 . . Kinetic 23 | . . . 18 . . 3 2 Thermal 45 | . 15 9 3 . 14 . 4 Explosive 1 | . . . . . . 1 . Electromagnetic 20 | . 15 2 2 . . 1 . Robot Hit Streak 5 | . 3 5 4 . 5 3 3 Robot Miss Streak 4 | . 4 . 2 . 1 1 2 Penetration Max . | . . . . . . . . Secondary Targets 1 | . 1 . . . . . . Max Gunslinging Chain 1 | . 1 . . . . . . Shots Hit Robots 64 | . 15 2 15 . 11 4 17 Core Hits 37 | . 8 1 13 . 2 3 10 Critical Kills . | . . . . . . . . Critical Parts Destroyed . | . . . . . . . . Critical Strikes 3 | . 1 . . . . . 2 Corrupt 1 | . 1 . . . . . . Sever 2 | . . . . . . . 2 Melee Attacks 17 | . . . . . . . 17 Impact . | . . . . . . . . Slashing 17 | . . . . . . . 17 Piercing . | . . . . . . . . Sneak Attacks 3 | . . . . . . . 3 Combat Hostiles . | . . . . . . . . Follow-up Attacks . | . . . . . . . . Damage Inflicted 1683 | . 215 34 176 . 182 93 983 Guns 622 | . 187 34 115 . 172 43 71 Cannons . | . . . . . . . . Explosions 75 | . 25 . . . . 50 . Melee 899 | . . . . . . . 899 Ramming 54 | . 3 . 38 . . . 13 Kinetic 131 | . . . 88 . . 43 . Thermal 388 | . 112 . 23 . 182 . 71 Explosive 50 | . . . . . . 50 . Electromagnetic 161 | . 100 34 27 . . . . Impact . | . . . . . . . . Slashing 899 | . . . . . . . 899 Piercing . | . . . . . . . . Highest Corruption 23 | . . . 2 . . 23 6 Average Corruption 14 | . . . 2 . . 22 3 Corruption Purged . | . . . . . . . . Corruption Blocked . | . . . . . . . . Effects 18 | . . . . . . 14 4 Message Errors 6 | . . . . . . 4 2 Matter Fused 3 | . . . . . . 2 1 Heat Flow Errors 2 | . . . . . . 1 1 Energy Discharges 2 | . . . . . . 2 . Parts Rejected 1 | . . . . . . 1 . Data Loss (minor) 2 | . . . . . . 2 . Data Loss (major) 1 | . . . . . . 1 . Misdirections 1 | . . . . . . 1 . Overload Shots . | . . . . . . . . Overflow Damage 111 | . 5 . . . . . 106 Projectiles . | . . . . . . . . Explosions 5 | . 5 . . . . . . Melee 106 | . . . . . . . 106 Knockbacks . | . . . . . . . . Impact . | . . . . . . . . Kinetic . | . . . . . . . . Secondary . | . . . . . . . . Self-Inflicted Damage 39 | . 14 . 19 . . . 6 Shots 1 | . 1 . . . . . . Rammed 9 | . . . 6 . . . 3 Targets Rammed 11 | . 1 . 6 . . . 4 Kicked 2 | . 1 . . . . . 1 Crushed . | . . . . . . . . Highest Temperature 267 | . 111 6 9 . 27 267 165 Average Temperature 48 | . 39 6 6 . 27 110 56 Received Heat Transfer 741 | . 21 6 252 . 159 240 63 Siege Activations . | . . . . . . . . Robots Corrupted . | . . . . . . . . Combat Hostiles . | . . . . . . . . Parts Fried . | . . . . . . . . Impact Corruptions . | . . . . . . . . Robots Melted . | . . . . . . . . Combat Hostiles . | . . . . . . . . Parts Melted . | . . . . . . . . Heat Transferred 881 | . 250 . 74 . 407 . 150 Parts Sabotaged . | . . . . . . . . Parts Stolen 1 | . . . . . . 1 . Parts Stripped . | . . . . . . . . Power Chain Reactions 1 | . 1 . . . . . . Alert | -11 -10 -9 -8 -7 -7 -7 -6 ------- Run | Yrd Mat Mat Mat Fac Low Low Fac Peak Influence 165 | . 135 151 165 38 . . 115 Initial 63 | . . 56 63 38 . . 18 Average 52 | . 55 127 99 38 . . 27 Maximum Alert Level . | . . . . . . . . Low Security (%) 100 | 100 100 100 100 100 . . 100 Level 1 . | . . . . . . . . Level 2 . | . . . . . . . . Level 3 . | . . . . . . . . Level 4 . | . . . . . . . . Level 5 . | . . . . . . . . High Security . | . . . . . . . . Max Security . | . . . . . . . . Squads Dispatched 6 | . 2 2 1 . . . 1 Investigation . | . . . . . . . . Extermination 1 | . . . . . . . 1 Reinforcement 5 | . 2 2 1 . . . . Assault . | . . . . . . . . Garrison . | . . . . . . . . Intercept . | . . . . . . . . Searches Triggered . | . . . . . . . . Construction Impeded 1 | . . . 1 . . . . Haulers Reinforced . | . . . . . . . . Active Scanning Responses . | . . . . . . . . Cargo Convoy Interrupts . | . . . . . . . . Stealth | -11 -10 -9 -8 -7 -7 -7 -6 --------- Run | Yrd Mat Mat Mat Fac Low Low Fac Distress Signals . | . . . . . . . . Communications Jammed . | . . . . . . . . Distress Signals . | . . . . . . . . Times Spotted 72 | . 16 5 11 . 10 16 14 Peak Tracking Total 8 | . 6 3 8 . 8 8 8 Tactical Retreats 13 | . 3 1 1 . 4 2 2 Traps | -11 -10 -9 -8 -7 -7 -7 -6 ------- Run | Yrd Mat Mat Mat Fac Low Low Fac Traps Triggered . | . . . . . . . . Indirectly . | . . . . . . . . Trap Hack Attempts . | . . . . . . . . Triggered . | . . . . . . . . Disarmed . | . . . . . . . . Reprogrammed . | . . . . . . . . Reused . | . . . . . . . . Traps Extracted . | . . . . . . . . Installed . | . . . . . . . . Triggered . | . . . . . . . . Machines | -11 -10 -9 -8 -7 -7 -7 -6 ---------- Run | Yrd Mat Mat Mat Fac Low Low Fac Machines Disabled . | . . . . . . . . Max in Single Turn . | . . . . . . . . Machines Repaired . | . . . . . . . . Machines Dismantled . | . . . . . . . . Machines Sabotaged . | . . . . . . . . Overloaded Fab Kills . | . . . . . . . . Hacking | -11 -10 -9 -8 -7 -7 -7 -6 --------- Run | Yrd Mat Mat Mat Fac Low Low Fac Machines Accessed 7 | . 2 2 2 . . . 1 Terminals 7 | . 2 2 2 . . . 1 Fabricators . | . . . . . . . . Repair Stations . | . . . . . . . . Recycling Units . | . . . . . . . . Scanalyzers . | . . . . . . . . Garrison Access . | . . . . . . . . Total Hacks 21 | . 9 5 6 . . . 1 Successful 9 | . 5 1 3 . . . . Failed 12 | . 4 4 3 . . . 1 Catastrophic 2 | . 1 . . . . . 1 Database Lockouts . | . . . . . . . . Manual . | . . . . . . . . Terminals 21 | . 9 5 6 . . . 1 Fabricators . | . . . . . . . . Repair Stations . | . . . . . . . . Recycling Units . | . . . . . . . . Scanalyzers . | . . . . . . . . Garrison Access . | . . . . . . . . Terminal Hacks 9 | . 5 1 3 . . . . Record 1 | . 1 . . . . . . Robot Analysis 1 | . . . 1 . . . . Prototype ID Bank 1 | . . . 1 . . . . Recycling Unit Index 1 | . . 1 . . . . . Alert Level 1 | . 1 . . . . . . Locate Traps 1 | . 1 . . . . . . Dispatch Records 1 | . 1 . . . . . . Hauler Manifests 1 | . 1 . . . . . . Zone Layout 1 | . . . 1 . . . . Fabricator Hacks . | . . . . . . . . Repair Station Hacks . | . . . . . . . . Recycling Unit Hacks . | . . . . . . . . Scanalyzer . | . . . . . . . . Garrison Access Hacks . | . . . . . . . . Unauthorized Hacks . | . . . . . . . . Terminals . | . . . . . . . . Fabricators . | . . . . . . . . Repair Stations . | . . . . . . . . Recycling Units . | . . . . . . . . Scanalyzers . | . . . . . . . . Garrison Access . | . . . . . . . . Data Cores Recovered 1 | . . . 1 . . . . Used . | . . . . . . . . Hacking Detections 5 | . 1 1 2 . . . 1 Full Trace Events 1 | . 1 . . . . . . Feedback Events . | . . . . . . . . Feedback Blocked . | . . . . . . . . Robot Schematics Acquired . | . . . . . . . . Robots Built . | . . . . . . . . Authchips . | . . . . . . . . Time . | . . . . . . . . Total Robot Build Rating . | . . . . . . . . Part Schematics Acquired . | . . . . . . . . Parts Built . | . . . . . . . . Authchips . | . . . . . . . . Time . | . . . . . . . . Total Part Build Rating . | . . . . . . . . Parts Repaired . | . . . . . . . . Time . | . . . . . . . . Parts Recycled . | . . . . . . . . Recycled Matter . | . . . . . . . . Retrieved Matter . | . . . . . . . . Retrieved Components . | . . . . . . . . Parts Scanalyzed . | . . . . . . . . Part Schematics Acquired . | . . . . . . . . Parts Damaged . | . . . . . . . . Bothacking | -11 -10 -9 -8 -7 -7 -7 -6 ------------ Run | Yrd Mat Mat Mat Fac Low Low Fac Used RIF Installer . | . . . . . . . . Robots Hacked . | . . . . . . . . Non-combat . | . . . . . . . . Combat . | . . . . . . . . Robot Hacks Applied . | . . . . . . . . Relay Couplers Released . | . . . . . . . . Fabnet Peak Effective % . | . . . . . . . . Robots Rewired . | . . . . . . . . Allies Hacked . | . . . . . . . . Hacks Repelled . | . . . . . . . . Allies | -11 -10 -9 -8 -7 -7 -7 -6 -------- Run | Yrd Mat Mat Mat Fac Low Low Fac Total Allies . | . . . . . . . . Largest Group . | . . . . . . . . Highest-Rated Group . | . . . . . . . . Highest-Rated Ally . | . . . . . . . . Total Orders . | . . . . . . . . Ally Attacks . | . . . . . . . . Total Damage . | . . . . . . . . Kills . | . . . . . . . . Allies Corrupted . | . . . . . . . . Allies Melted . | . . . . . . . . Intel | -11 -10 -9 -8 -7 -7 -7 -6 ------- Run | Yrd Mat Mat Mat Fac Low Low Fac Robot Analysis Total 1 | . . . 1 . . . . Derelict Logs Recovered 1 | . . . . . . 1 . Drone Launches . | . . . . . . . . Drone Recoveries . | . . . . . . . . Exploration | -11 -10 -9 -8 -7 -7 -7 -6 ------------- Run | Yrd Mat Mat Mat Fac Low Low Fac Turns Passed 2222 | 118 375 146 187 33 185 598 580 Spaces Moved 2303 | 48 264 286 311 63 291 567 473 Core 727 | 7 . . 26 63 284 212 135 Treads . | . . . . . . . . Legs 967 | 41 264 . . . . 324 338 Wheels 2 | . . . 2 . . . . Hover 2 | . . . . . 2 . . Flight 605 | . . 286 283 . 5 31 . Fastest Speed 34 | 50 120 34 34 50 35 40 50 Average Speed 78 | 116 120 34 37 50 51 98 103 Slowest Speed 200 | 150 120 114 100 50 200 200 190 Overloaded Moves . | . . . . . . . . Propulsion Burnouts . | . . . . . . . . Robots Hopped . | . . . . . . . . Cave-ins Triggered . | . . . . . . . . Exploration Rate (%) 35 | 5 54 32 41 3 53 80 13 Regions Visited 7 Branch Regions 2 Pre-discovered Areas . | . . . . . . . . Known Exits Taken . | . . . . . . . . Unknown Exits Taken 7 | 1 1 1 1 1 1 1 . Scrap Searched 10 | . . . . . 1 9 . Spaces Dug . | . . . . . . . . Terrain Destroyed 14 | . 6 . . . . 8 . Melee . | . . . . . . . . Projectile . | . . . . . . . . AOE 14 | . 6 . . . . 8 . Terrain Rammed . | . . . . . . . . Walls Destroyed . | . . . . . . . . Machines Disabled . | . . . . . . . . Actions | -11 -10 -9 -8 -7 -7 -7 -6 --------- Run | Yrd Mat Mat Mat Fac Low Low Fac Total 2580 | 107 294 316 357 63 311 599 533 Wait 59 | 50 . . . . . . 9 Move 2296 | 47 263 285 310 62 290 566 473 Hop . | . . . . . . . . Pick Up 42 | 4 8 4 3 . 2 12 9 Fast Attach 16 | 6 . 1 2 1 . 4 2 Attach 40 | . 2 6 5 . 5 12 10 Detach 4 | . . 3 1 . . . . Swap 4 | . 1 1 2 . . . . Drop 19 | . 4 5 5 . . 1 4 Fire 70 | . 15 11 21 . 14 4 5 Melee 17 | . . . . . . . 17 Ram 9 | . . . 6 . . . 3 Kick 2 | . 1 . . . . . 1 Crush . | . . . . . . . . Escape Stasis . | . . . . . . . . Rewire . | . . . . . . . . Trap . | . . . . . . . . Miscellaneous 2 | . . . 2 . . . . Route ------- -11/Scrapyard -10/Materials (discovered 2 exits: *Mat / [*Min]) -9/Materials (discovered 2 exits: *Mat / [*Min]) -8/Materials (discovered 2 exits: *Fac x2) -7/Factory -7/Lower Caves -7/Lower Caves -6/Factory History --------- Turn | Location | Event 14 | -11/Scrapyard | Discovered new exit (range 15) 119 | -11/Scrapyard | Entered Materials 221 | -10/Materials | Discovered new exit (range 16) 313 | -10/Materials | Build established: Mutant 481 | -10/Materials | Discovered new exit (range 8) 494 | -10/Materials | Entered another Materials area 494 | -9/Materials | Evolved 2 slots: Propulsion x1, Utility x1 565 | -9/Materials | Discovered new exit (range 9) 602 | -9/Materials | Discovered new exit (range 11) 640 | -9/Materials | Entered another Materials area 640 | -8/Materials | Evolved 2 slots: Propulsion x1, Utility x1 706 | -8/Materials | Discovered new exit (range 14) 819 | -8/Materials | Discovered new exit (range 16) 821 | -8/Materials | Core integrity fell below 50% 827 | -8/Materials | Entered Factory 827 | -7/Factory | Evolved 2 slots: Power x1, Utility x1 849 | -7/Factory | Lost 10 parts (2p4n2u2w) 853 | -7/Factory | Discovered new exit (range 14) 860 | -7/Factory | Entered Lower Caves 861 | -7/Lower Caves | Encountered a Warlord checkpoint 949 | -7/Lower Caves | Attracted the attention of an 0b10 checkpoint 987 | -7/Lower Caves | Lost 5 parts (1p2n1u1w) 994 | -7/Lower Caves | Core integrity fell below 50% 1040 | -7/Lower Caves | Discovered new exit (range 10) 1045 | -7/Lower Caves | Entered another Lower Caves area 1126 | -7/Lower Caves | Learned Factory emergency access door positions 1214 | -7/Lower Caves | Attacked by a faux Warlord 1385 | -7/Lower Caves | System corruption reached 10% 1481 | -7/Lower Caves | Core integrity fell below 20% 1616 | -7/Lower Caves | Discovered new exit (range 8) 1643 | -7/Lower Caves | Entered Factory 1643 | -6/Factory | Evolved 2 slots: Propulsion x1, Utility x1 1676 | -6/Factory | Build established: Scavenger-Mutant 2075 | -6/Factory | Lost 7 parts (2p2n3u) 2162 | -6/Factory | Core integrity fell below 50% 2188 | -6/Factory | Lost 6 parts (3n2u1w) 2206 | -6/Factory | Core integrity fell below 20% 2223 | -6/Factory | Destroyed by S-27 Virus with Autogun Last Messages --------------- TNB37HL D K:SSS8 B%CDIN>T Penetrated by Slug. Microactuators destroyed. Penetrated by Slug. Carbon-fiber Leg destroyed. Dropped Lrg. Storage Unit. Hacking Suite destroyed. K-01 Serf destroyed. K-01 Serf collects debris. Slammed into A-15 Conveyor. System corrupted: Heat flow error (+202). ALERT: Security rotation in progress. System corrupted: Matter fused (-8). Connecting with Terminal... Current location identified: Factory Carbon-fiber Leg destroyed. P-60 Hacker resets S-27 Virus, system corruption cleaned. Thermic Laser destroyed. Acquired Plasma Rifle. Map ----- +----------------------------------------------------+ | ????????????????????????????????????????????????? | | ????????????????????????????????????????????????? | | ????????????????????????????????????????????????? | | ????????????????????????????????????????????????? | | ????????????????????????????????????????????????? | | ????????????????????????????????????????????????? | | ????????????????????????????????????????????????? | | ????????????????????????????????????????????????? | | ????????????????????????????????????????????????? | | ????????????????????????????????????????????????? | | ????????????????????????????????????????????????? | | ?????????????????????????????????????????????+??? | | ????????????????????????????????????????????????? | | ????????????????????????????????????????????????? | | ????????????????????????????????????????????????? | | ??????????????????????????????????????#######???? | | ????????????????????????????????????? #???? | | ???????????????????????????????????" """ #???? | | ?????????????????????????????????""" """ #???? | | ?????????????????????????????????""" """ #???? | | ???????????????????????????????# #???? | | ???????????????????????????????# """ """ #???? | | ???????????????##############??# """ """ #???? | | ???????????????# ss #??# """ """ #??## | | ???????????????# """""s #??# #### | | ???????????????# ""T"" @ #??# + | | ???????????????# p !#??# #### | | ???????????????# ] ! #??# #??## | | ???????????????# ##########+######???# | | ???????????????# """"""""" # ######## | | ???????????????# """"""""" # | | ???????????????# """"""""" # | | ???????????????# """"""""" + | | ???????????????# """"""""" # ######## | | ???????????????# """"""""" # ###+####??????? | | ???????????????#####?######## # ????????? | | ?????????????????????????? # ! ??????? | | ??????????????????????? # """"????? | | ?????????????????????? # """"""??? | | ?????????????????????# # """""???? | | ?????????????????????# # """""???? | | ?????????????????????# ###+#############????? | | ?????????????????????# ?????????????????????? | | ????????????????????? ?????????????????????? | | ???????????????????? ??????????????????????? | | ??????+???????????????""" ??????????????????????? | | ????????????????????????????????????????????????? | | ??????+?????????????????????????????????????????? | | ????????????????????????????????????????????????? | | ????????????????????????????????????????????????? | +----------------------------------------------------+ Best States ------------- Heat Dissipation 37 Energy Generation 25 Energy Capacity 330 Matter Stores 300 Matter Capacity 300 Sight Range 16 Terrain Scan Density 10 ECM Strength 1 Additional Mass Support 9 Armor Coverage 150 Resistance: TH 10 Propulsion Shielding 33 Melee Speed Boost 20 Evasion (%) 63 Offensive Hacking 10 Authchip Count 1 Item Schematics ----------------- None Robot Schematics ------------------ None Fabricated ------------ Nothing Alien Tech Used ----------------- None Achievements -------------- System Compromised Challenges ------------ None Game ------ Seed AntimatterSchematicPurifier Manual? 0 Play Time 00:37:41 Cumulative 4.2 hours Start 2024.04.03 @ 12:44:06 End 2024.04.03 @ 13:21:00 Sessions 1 Manual Loads 0 Difficulty Rogue Special Mode None Game No. 8 Rogue 2 Adventurer 6 Explorer 0 Win Type - Total 0 Types 0/0/0/0/0/0/0/0/0 Lore% 11 Gallery% 9 Achievement% 8 Wizard Run 0 Options --------- Layout 1 ASCII 0 Keyboard 0 Movement Mouse Keybinds 0 Fullscreen 1 Font 24/Smallcaps Map View 50x35 Zoom Use 0% Tactical HUD 0 Map Filters NONE Filters NONE Steam 1 RUN: 948d7997-d9c5-4cff-afaf-1ef7a6f06b09